bitfinex/quotes_SOLUSD_20240829
["timestamp","ask_amount","ask_price","bid_price","bid_amount"]
[1724944965200,0.5,146.15,146.1,1.36880531]
[1724944965601,0.5,146.16,146.1,1.36880531]
[1724944966193,0.5,146.16,146.09,15.9193]
[1724944966610,7.3413,146.17,146.09,15.9193]
[1724944967314,6.8429,146.14,146.09,15.9193]
[1724944967620,0.5,146.13,146.06,6.6265]
[1724944968306,0.5,146.13,146.06,38.12241128]
[1724944968509,0.5,146.13,146.07,1.36888079]
[1724944968905,0.5,146.13,146.06,38.12241128]
[1724944969316,0.5,146.14,146.06,38.12241128]
[1724944969529,0.5,146.14,146.07,45.0]
[1724944969819,0.5,146.14,146.06,38.12241128]
[1724944970409,7.3424,146.15,146.06,38.12241128]
[1724944970608,6.8432,146.13,146.06,38.12241128]
[1724944970925,0.5,146.12,146.06,38.12241128]
[1724944971233,6.8428,146.14,146.07,1.36891976]
[1724944971528,7.3433,146.13,146.05,16.533]
[1724944972020,7.3433,146.13,146.02,6.109]
[1724944972021,6.8455,146.08,146.02,6.109]
[1724944972206,0.5,146.07,146.0,18.25741523]
[1724944972400,0.5,146.07,146.0,15.3781]
[1724944972597,0.5,146.07,146.0,18.25741523]
[1724944972802,0.5,146.07,146.0,15.3781]
[1724944973616,7.3461,146.07,146.0,15.3781]
[1724944973818,0.5,146.06,146.0,15.3781]
[1724944974797,0.5,146.07,146.0,15.3781]
[1724944975204,0.5,146.07,145.99,31.49591128]
[1724944975205,6.8466,146.06,145.99,31.49591128]
[1724944975422,0.5,146.05,145.99,31.49591128]
[1724944976412,0.5,146.05,145.97,23.7626884]
[1724944976628,0.5,146.05,145.98,45.0]
[1724944978332,0.5,146.06,145.98,45.0]
[1724944979227,0.5,146.07,145.98,45.0]
[1724944979516,7.346,146.07,145.98,45.0]
[1724944982626,7.346,146.07,145.99,31.49591128]
[1724944983029,7.346,146.07,145.97,23.7626884]
[1724944983030,7.346,146.07,145.97,55.25859968]
[1724944983331,0.25098,146.06,145.98,20.0]
[1724944984616,0.75098,146.06,145.98,20.0]
[1724944986719,0.12549,146.06,145.98,20.0]
[1724944986913,7.3462,146.07,145.98,20.0]
[1724944987109,31.99591128,146.07,145.97,23.7626884]
[1724944987416,45.25098,146.06,145.95,31.49591128]
[1724944987742,0.5,146.05,145.97,31.49591128]
[1724944987918,0.5,146.05,145.98,1.36966519]
[1724944988510,0.5,146.06,145.98,45.0]
[1724944989833,0.5,146.06,145.97,31.49591128]
[1724944990340,0.5,146.06,145.98,45.0]
[1724944990551,0.5,146.06,145.97,31.49591128]
[1724944991233,0.5,146.06,145.98,45.0]
[1724944992741,0.5,146.06,145.99,32.86554228]
[1724944992915,0.5,146.07,146.01,31.49591128]
[1724944993931,0.5,146.07,146.02,1.36939582]
[1724944994238,22.5377,146.1,146.03,31.49591128]
[1724944994239,0.5,146.09,146.03,31.49591128]
[1724944994421,0.5,146.09,146.04,1.36921327]
[1724944994623,0.5,146.09,146.05,1.36921025]
[1724944994840,0.5,146.09,146.04,1.36921047]
[1724944995230,0.5,146.09,146.03,31.49591128]
[1724944995437,0.5,146.09,146.01,31.49591128]
[1724944995737,0.5,146.09,146.02,20.0]
[1724944995943,0.5,146.09,146.03,1.36932102]
[1724944996121,0.5,146.09,146.03,32.8652323]
[1724944997448,16.193,146.1,146.03,32.8652323]
[1724944998020,16.193,146.1,146.03,31.49591128]
[1724944998528,16.193,146.1,146.04,1.36909457]
[1724944998849,15.693,146.1,146.05,31.49591128]
[1724944999046,22.5748,146.14,146.07,31.49591128]
[1724944999223,22.5748,146.14,146.08,45.0]
[1724944999431,22.5748,146.14,146.09,31.49591128]
[1724945000846,22.5748,146.14,146.1,1.36861425]
[1724945001047,22.5748,146.14,146.09,31.49591128]
[1724945001644,16.3593,146.18,146.09,31.49591128]
[1724945001841,0.5,146.17,146.11,31.49591128]
[1724945003143,6.1124,146.19,146.08,45.0]
[1724945003144,0.5,146.2,146.15,31.49591128]
[1724945003348,15.8135,146.21,146.16,1.36811519]
[1724945004827,15.8135,146.21,146.14,21.36812532]
[1724945005034,15.8135,146.21,146.14,20.0]
[1724945005419,15.8135,146.21,146.15,1.36812522]
[1724945005634,15.8135,146.21,146.11,31.49591128]
[1724945005635,0.5,146.2,146.11,31.49591128]
[1724945005920,7.46579,146.2,146.11,31.49591128]
[1724945006749,0.62549,146.2,146.11,31.49591128]
[1724945007446,7.46539,146.2,146.11,31.49591128]
[1724945008057,31.49591128,146.17,146.04,16.197]
[1724945008252,6.8428,146.14,146.04,47.69291128]
[1724945008427,0.5,146.13,146.04,47.69291128]
[1724945009335,0.5,146.13,146.05,20.0]
[1724945010161,7.3432,146.13,146.05,20.0]
[1724945011757,0.5,146.13,146.05,20.0]
[1724945012144,0.5,146.13,146.06,76.49591128]
[1724945012347,0.5,146.14,146.06,76.49591128]
[1724945012540,7.3428,146.14,146.06,31.49591128]
[1724945013258,0.5,146.15,146.08,31.49591128]
[1724945015843,6.843,146.14,146.07,45.0]
[1724945016042,0.5,146.13,146.07,45.0]
[1724945016461,0.5,146.13,146.06,31.49591128]
[1724945016653,0.5,146.13,146.07,20.0]
[1724945017061,0.5,146.14,146.07,20.0]
[1724945018249,0.5,146.14,146.08,1.36885536]
[1724945019266,0.5,146.14,146.07,20.0]
[1724945019862,0.5,146.15,146.08,45.0]
[1724945020366,0.5,146.15,146.07,20.0]
[1724945021163,0.5,146.15,146.08,1.36883867]
[1724945021869,0.5,146.15,146.07,20.0]
[1724945024753,52.3422,146.15,146.07,20.0]
[1724945024953,0.5,146.14,146.07,20.0]
[1724945026069,0.5,146.14,146.05,20.0]
[1724945026269,7.3428,146.14,146.06,1.36895753]
[1724945027466,0.5,146.14,146.06,1.36895753]
[1724945027667,0.5,146.14,146.06,76.49591128]
[1724945027874,0.5,146.14,146.07,20.0]
[1724945028051,7.3427,146.14,146.06,31.49591128]
[1724945028246,0.5,146.14,146.06,31.49591128]
[1724945028447,0.5,146.13,146.06,31.49591128]
[1724945028669,0.5,146.13,146.07,1.36887198]
[1724945029464,0.5,146.14,146.07,1.36887198]
[1724945029863,7.3431,146.14,146.06,31.49591128]
[1724945030067,0.5,146.14,146.04,31.49591128]
[1724945030364,45.5,146.14,146.06,31.49591128]
[1724945030769,52.3427,146.14,146.06,31.49591128]
[1724945031364,0.25098,146.13,146.06,31.49591128]
[1724945031583,0.5,146.12,146.06,31.49591128]
[1724945032162,0.5,146.15,146.07,12.61959228]
[1724945032357,0.25098,146.14,146.07,12.61959228]
[1724945032701,0.75098,146.14,146.07,12.61959228]
[1724945034079,0.5,146.14,146.07,12.61959228]
[1724945034255,0.5,146.15,146.07,12.61959228]
[1724945034767,0.5,146.15,146.11,12.61959228]
[1724945035656,21.8551,146.16,146.13,12.61959228]
[1724945036876,0.5,146.15,146.11,12.61959228]
[1724945037384,21.8551,146.16,146.13,12.61959228]
[1724945038355,0.5,146.15,146.11,12.61959228]
[1724945039076,0.5,146.15,146.09,12.61959228]
[1724945040260,22.3551,146.16,146.11,12.61959228]
[1724945040464,0.5,146.15,146.11,12.61959228]
[1724945042462,21.8551,146.16,146.11,12.61959228]
[1724945042877,0.5,146.15,146.11,12.61959228]
[1724945043391,0.5,146.15,146.09,12.61959228]
[1724945044164,0.5,146.15,146.11,12.61959228]
[1724945044486,21.8551,146.16,146.12,1.36861987]
[1724945044871,15.3965,146.16,146.13,12.61959228]
[1724945045076,16.2447,146.19,146.14,1.36839305]
[1724945045269,16.7447,146.19,146.13,12.61959228]
[1724945045885,16.2447,146.19,146.17,12.61959228]
[1724945046277,6.0709,146.2,146.17,12.61959228]
[1724945046863,6.0709,146.2,146.16,12.61959228]
[1724945048870,6.0709,146.2,146.14,12.61959228]
[1724945049084,0.5,146.19,146.14,12.61959228]
[1724945049788,6.5709,146.2,146.14,12.61959228]
[1724945049992,0.5,146.22,146.18,12.61959228]
[1724945051288,21.5059,146.23,146.19,1.36798358]
[1724945051588,21.5059,146.23,146.18,12.61959228]
[1724945051968,21.5059,146.23,146.2,12.61959228]
[1724945052168,0.5,146.25,146.21,1.36777388]
[1724945052385,0.5,146.26,146.21,1.36777388]
[1724945052585,0.5,146.26,146.2,12.61959228]
[1724945052987,7.3373,146.26,146.14,6.0187]
[1724945053195,0.5,146.26,146.2,12.61959228]
[1724945053494,22.3539,146.27,146.24,12.61959228]
[1724945053793,0.5,146.3,146.25,1.36744137]
[1724945054092,0.5,146.3,146.26,12.61959228]
[1724945054795,0.5,146.3,146.24,12.61959228]
[1724945055218,7.3357,146.3,146.18,15.771]
[1724945055381,0.5,146.29,146.21,12.61959228]
[1724945055771,7.3358,146.29,146.21,12.61959228]
[1724945056879,6.8366,146.28,146.21,12.61959228]
[1724945057091,0.75098,146.27,146.21,12.61959228]
[1724945057278,0.75098,146.27,146.19,42.61959228]
[1724945057279,22.2937,146.25,146.19,42.61959228]
[1724945057477,0.5,146.24,146.19,42.61959228]
[1724945057791,0.5,146.27,146.21,12.61959228]
[1724945057971,0.5,146.27,146.23,12.61959228]
[1724945058176,0.5,146.27,146.21,12.61959228]
[1724945061970,7.3367,146.27,146.21,12.61959228]
[1724945064969,0.5,146.27,146.21,12.61959228]
[1724945065173,0.5,146.28,146.23,12.61959228]
[1724945067189,7.3363,146.28,146.21,12.61959228]
[1724945067388,6.8366,146.27,146.21,12.61959228]
[1724945067693,0.5,146.26,146.21,12.61959228]
[1724945068285,6.8366,146.27,146.21,12.61959228]
[1724945068286,0.5,146.27,146.21,12.61959228]
[1724945068595,7.3365,146.28,146.2,12.61959228]
[1724945068796,0.5,146.28,146.22,12.61959228]
[1724945069979,0.5,146.28,146.17,30.12549]
[1724945069980,0.5,146.28,146.24,12.61959228]
[1724945071898,15.9784,146.29,146.24,12.61959228]
[1724945072111,15.9784,146.29,146.25,1.36726605]
[1724945072488,15.9784,146.29,146.26,12.61959228]
[1724945076116,6.3153,146.3,146.26,12.61959228]
[1724945078009,6.3153,146.3,146.24,12.61959228]
[1724945078314,0.5,146.29,146.24,12.61959228]
[1724945078990,0.5,146.29,146.25,1.36736924]
[1724945079192,6.3153,146.3,146.26,12.61959228]
[1724945080115,6.3153,146.3,146.21,16.0448]
[1724945080290,0.5,146.29,146.24,12.61959228]
[1724945081301,7.3357,146.29,146.24,12.61959228]
[1724945082895,6.3153,146.3,146.24,12.61959228]
[1724945083100,6.3153,146.3,146.26,12.61959228]
[1724945083399,6.8153,146.3,146.26,12.61959228]
[1724945083798,0.5,146.29,146.24,12.61959228]
[1724945085098,13.1507,146.3,146.24,12.61959228]
[1724945086996,6.3153,146.3,146.24,12.61959228]
[1724945087197,6.8153,146.3,146.24,12.61959228]
[1724945087829,13.1505,146.3,146.24,12.61959228]
[1724945089506,0.5,146.29,146.24,12.61959228]
[1724945096404,7.3358,146.29,146.24,12.61959228]
[1724945097822,0.5,146.29,146.24,12.61959228]
[1724945098720,6.3153,146.3,146.26,12.61959228]
[1724945099024,6.8153,146.3,146.26,12.61959228]
[1724945100738,15.5546,146.33,146.28,12.61959228]
[1724945100903,15.0546,146.33,146.3,12.61959228]
[1724945101608,6.2714,146.34,146.3,12.61959228]
[1724945102001,6.2714,146.34,146.31,1.36678087]
[1724945102203,6.2714,146.34,146.32,12.61959228]
[1724945102405,0.5,146.35,146.32,12.61959228]
[1724945102598,0.5,146.35,146.3,12.61959228]
[1724945103430,7.333,146.35,146.3,12.61959228]
[1724945103637,0.5,146.34,146.3,12.61959228]
[1724945104522,7.3325,146.36,146.3,12.61959228]
[1724945104722,0.5,146.35,146.3,12.61959228]
[1724945106033,0.5,146.36,146.3,12.61959228]
[1724945107025,21.9383,146.37,146.32,12.61959228]
[1724945107200,22.4383,146.37,146.32,12.61959228]
[1724945108531,6.8332,146.35,146.3,12.61959228]
[1724945108830,0.5,146.34,146.3,12.61959228]
[1724945109627,0.5,146.35,146.3,12.61959228]
[1724945111326,0.5,146.36,146.3,12.61959228]
[1724945112205,22.4383,146.37,146.32,12.61959228]
[1724945113006,29.2703,146.37,146.3,12.61959228]
[1724945113214,22.4383,146.37,146.3,12.61959228]
[1724945113807,6.8325,146.36,146.3,12.61959228]
[1724945114014,0.5,146.35,146.3,12.61959228]
[1724945114207,0.5,146.35,146.27,16.6464]
[1724945114403,13.11959228,146.35,146.24,6.02149697]
[1724945114617,13.0937,146.31,146.24,15.49392322]
[1724945114828,6.2589,146.31,146.26,12.61959228]
[1724945115331,15.9129,146.33,146.28,12.61959228]
[1724945115728,15.9129,146.33,146.3,12.61959228]
[1724945115906,6.1494,146.35,146.3,12.61959228]
[1724945116109,12.9823,146.35,146.3,12.61959228]
[1724945116310,0.5,146.34,146.3,12.61959228]
[1724945116736,13.4823,146.35,146.3,12.61959228]
[1724945117510,6.6494,146.35,146.3,12.61959228]
[1724945117929,13.4824,146.35,146.28,12.61959228]
[1724945119033,6.6494,146.35,146.28,12.61959228]
[1724945119219,0.5,146.34,146.3,12.61959228]
[1724945119418,0.5,146.34,146.28,12.61959228]
[1724945120018,6.6494,146.35,146.3,12.61959228]
[1724945120220,6.1494,146.35,146.31,1.36675238]
[1724945120425,16.2727,146.37,146.32,12.61959228]
[1724945120639,16.7727,146.37,146.33,1.36660356]
[1724945120938,16.7727,146.37,146.32,12.61959228]
[1724945121319,16.7727,146.37,146.33,1.36660801]
[1724945121533,16.7727,146.37,146.32,12.61959228]
[1724945122215,16.7727,146.37,146.33,1.36656324]
[1724945122430,16.2727,146.37,146.33,1.36656324]
[1724945123744,16.2727,146.37,146.32,12.61959228]
[1724945124239,0.5,146.36,146.3,12.61959228]
[1724945126539,16.7727,146.37,146.3,12.61959228]
[1724945128142,23.6047,146.37,146.3,12.61959228]
[1724945129923,16.7727,146.37,146.31,1.366664]
[1724945130342,16.7727,146.37,146.32,12.61959228]
[1724945130524,16.2727,146.37,146.32,12.61959228]
[1724945133148,16.2727,146.37,146.26,8.7180388]
[1724945133343,16.2727,146.37,146.32,12.61959228]
[1724945134541,16.2727,146.37,146.33,1.36655274]
[1724945135036,16.2727,146.37,146.34,12.61959228]
[1724945135243,15.7972,146.41,146.35,1.36642269]
[1724945135440,15.7972,146.41,146.36,12.61959228]
[1724945136025,15.7972,146.41,146.34,12.61959228]
[1724945136232,22.6273,146.41,146.35,1.36629049]
[1724945136541,15.7972,146.41,146.36,12.61959228]
[1724945138267,15.2972,146.41,146.38,12.61959228]
[1724945138432,15.2972,146.41,146.39,1.36605941]
[1724945138632,6.1079,146.42,146.38,12.61959228]
[1724945138931,6.1079,146.42,146.31,2.87089471]
[1724945138932,16.5276,146.45,146.4,12.61959228]
[1724945140253,16.5276,146.45,146.41,1.36578589]
[1724945140254,16.0276,146.45,146.41,1.36578589]
[1724945140458,16.5276,146.45,146.4,12.61959228]
[1724945142156,16.0276,146.45,146.42,12.61959228]
[1724945142347,6.1453,146.46,146.43,1.36568011]
[1724945142851,6.1453,146.46,146.42,12.61959228]
[1724945144145,6.1453,146.46,146.4,12.61959228]
[1724945145565,6.1453,146.46,146.41,1.36574491]
[1724945146064,6.1453,146.46,146.4,12.61959228]
[1724945147244,7.3274,146.47,146.42,12.61959228]
[1724945147758,0.5,146.47,146.42,12.61959228]
[1724945149570,0.5,146.47,146.43,1.36566634]
[1724945149749,0.5,146.47,146.42,12.61959228]
[1724945149954,7.1652,146.48,146.42,12.61959228]
[1724945150155,6.6652,146.48,146.42,12.61959228]
[1724945150550,7.1652,146.48,146.42,12.61959228]
[1724945151375,7.1652,146.48,146.4,12.61959228]
[1724945151753,13.9923,146.48,146.4,12.61959228]
[1724945151946,13.9923,146.48,146.42,12.61959228]
[1724945155570,7.1652,146.48,146.42,12.61959228]
[1724945157187,13.9921,146.48,146.37,50.47836912]
[1724945157376,13.9921,146.48,146.42,12.61959228]
[1724945158355,6.8273,146.47,146.42,12.61959228]
[1724945158676,13.9921,146.48,146.42,12.61959228]
[1724945159186,6.8277,146.47,146.42,12.61959228]
[1724945159782,13.9922,146.48,146.42,12.61959228]
[1724945159968,7.327,146.48,146.42,12.61959228]
[1724945160477,15.1596,146.49,146.4,16.464]
[1724945160478,0.5,146.51,146.46,12.61959228]
[1724945160681,0.5,146.51,146.47,1.36530613]
[1724945160854,21.3692,146.57,146.48,12.61959228]
[1724945161061,6.8244,146.54,146.49,1.36508594]
[1724945161266,0.5,146.53,146.49,1.36508594]
[1724945161669,6.8244,146.54,146.49,1.36508594]
[1724945162265,6.8236,146.55,146.48,12.61959228]
[1724945162482,0.5,146.54,146.48,12.61959228]
[1724945164078,7.3236,146.55,146.49,1.36495953]
[1724945164275,7.3236,146.55,146.48,12.61959228]
[1724945164276,0.5,146.54,146.48,12.61959228]
[1724945164992,0.5,146.54,146.46,12.61959228]
[1724945165292,6.8246,146.53,146.46,12.61959228]
[1724945165481,0.5,146.52,146.46,12.61959228]
[1724945167177,7.325,146.52,146.46,12.61959228]
[1724945167377,45.0,146.55,146.46,12.61959228]
[1724945167378,0.5,146.51,146.46,12.61959228]
[1724945168392,0.5,146.52,146.46,12.61959228]
[1724945168968,7.325,146.52,146.46,12.61959228]
[1724945169167,6.8263,146.5,146.44,12.61959228]
[1724945169463,0.5,146.49,146.41,15.042]
[1724945169767,0.5,146.49,146.42,32.61959228]
[1724945169979,0.5,146.49,146.43,1.36553753]
[1724945170469,0.5,146.5,146.44,12.61959228]
[1724945170663,0.5,146.5,146.45,1.3654074]
[1724945170861,0.5,146.5,146.46,1.3654074]
[1724945171079,16.635,146.51,146.46,1.3654074]
[1724945171286,16.635,146.51,146.44,12.61959228]
[1724945171485,23.4607,146.51,146.44,12.61959228]
[1724945171874,6.8261,146.5,146.44,12.61959228]
[1724945172082,0.5,146.49,146.45,1.3655456]
[1724945173483,0.5,146.49,146.44,12.61959228]
[1724945173875,7.3266,146.49,146.42,32.61959228]
[1724945175180,0.5,146.49,146.43,1.36555199]
[1724945175381,7.326,146.5,146.43,1.36555199]
[1724945175680,7.326,146.5,146.44,12.61959228]
[1724945175681,0.5,146.5,146.44,12.61959228]
[1724945175882,0.5,146.51,146.46,12.61959228]
[1724945176187,0.5,146.51,146.47,1.36527043]
[1724945176387,6.1459,146.52,146.47,1.36527043]
[1724945176586,6.6459,146.52,146.47,1.36527043]
[1724945178376,0.5,146.53,146.46,12.61959228]
[1724945178578,0.5,146.53,146.47,1.36512667]
[1724945178795,0.5,146.54,146.48,12.61959228]
[1724945179109,22.3627,146.55,146.5,12.61959228]
[1724945179282,22.8627,146.55,146.51,1.36490534]
[1724945179599,22.3627,146.55,146.52,1.3648695]
[1724945179791,0.5,146.57,146.52,13.98446178]
[1724945180804,0.5,146.58,146.52,13.98446178]
[1724945182011,7.3223,146.58,146.52,1.3648695]
[1724945182308,7.3227,146.57,146.5,31.35936955]
[1724945182824,0.5,146.57,146.5,31.35936955]
[1724945183188,0.5,146.57,146.51,1.36472288]
[1724945183396,0.5,146.58,146.51,61.92802288]
[1724945183783,0.5,146.58,146.51,60.5633]
[1724945183984,0.5,146.59,146.52,31.48485955]
[1724945184486,6.8224,146.58,146.51,15.5633]
[1724945184696,0.5,146.57,146.51,15.5633]
[1724945185909,0.5,146.57,146.48,31.35936955]
[1724945186114,6.8232,146.56,146.49,65.0]
[1724945186413,0.5,146.55,146.49,65.0]
[1724945186706,0.5,146.59,146.49,65.0]
[1724945187012,6.8223,146.58,146.49,65.0]
[1724945187215,0.5,146.57,146.49,65.0]
[1724945187508,7.3227,146.57,146.49,65.0]
[1724945188187,0.5,146.56,146.49,65.0]
[1724945190394,0.5,146.56,146.5,31.35936955]
[1724945190708,0.5,146.56,146.51,1.36476895]
[1724945191205,0.5,146.56,146.5,31.35936955]
[1724945191385,0.5,146.58,146.5,31.35936955]
[1724945192301,6.8223,146.58,146.5,31.35936955]
[1724945192505,0.5,146.57,146.5,31.35936955]
[1724945193207,0.5,146.57,146.51,1.36475969]
[1724945194395,0.5,146.6,146.54,31.35936955]
[1724945194695,0.5,146.6,146.55,1.33178746]
[1724945195587,0.5,146.61,146.55,1.33178746]
[1724945196009,0.5,146.61,146.54,31.35936955]
[1724945197893,0.5,146.61,146.55,1.3644246]
[1724945199193,0.5,146.61,146.54,31.35936955]
[1724945199395,7.3208,146.61,146.55,1.36442494]
[1724945199603,0.5,146.6,146.55,1.36442494]
[1724945199796,7.3214,146.6,146.52,31.35936955]
[1724945200001,0.5,146.6,146.53,45.0]
[1724945200209,0.5,146.6,146.54,1.36453584]
[1724945200510,0.5,146.61,146.53,45.0]
[1724945200712,7.3209,146.61,146.53,45.0]
[1724945200885,0.5,146.6,146.53,45.0]
[1724945201787,0.5,146.6,146.54,1.36449993]
[1724945201991,0.5,146.6,146.54,13.90352581]
[1724945202199,0.5,146.6,146.54,12.53902588]
[1724945202516,6.8217,146.59,146.52,12.53902588]
[1724945202695,0.5,146.58,146.52,12.53902588]
[1724945203610,0.5,146.58,146.47,16.3422]
[1724945203611,15.1085,146.58,146.47,16.3422]
[1724945203795,6.7285,146.57,146.49,12.53902588]
[1724945204903,6.7285,146.57,146.51,12.53902588]
[1724945206015,13.5512,146.57,146.49,12.53902588]
[1724945206514,6.7285,146.57,146.49,12.53902588]
[1724945206717,6.7285,146.57,146.5,45.0]
[1724945207614,6.7285,146.57,146.51,12.53902588]
[1724945209110,13.5512,146.57,146.51,12.53902588]
[1724945209794,6.7285,146.57,146.51,12.53902588]
[1724945210495,13.5512,146.57,146.51,12.53902588]
[1724945210795,13.5512,146.57,146.49,12.53902588]
[1724945211716,6.8236,146.55,146.44,7.09719259]
[1724945211891,7.3241,146.54,146.46,12.53902588]
[1724945212098,0.5,146.54,146.47,20.0]
[1724945213010,0.5,146.54,146.48,12.53902588]
[1724945213197,0.5,146.55,146.48,12.53902588]
[1724945214421,7.3237,146.55,146.48,12.53902588]
[1724945214593,0.5,146.54,146.48,12.53902588]
[1724945214926,0.5,146.56,146.5,12.53902588]
[1724945215117,0.5,146.56,146.51,1.24119596]
[1724945216620,0.5,146.56,146.5,12.53902588]
[1724945217022,7.3232,146.56,146.5,12.53902588]
[1724945217432,0.5,146.56,146.47,20.0]
[1724945217600,0.5,146.56,146.49,12.53902588]
[1724945219907,0.5,146.56,146.51,12.53902588]
[1724945221421,0.5,146.56,146.52,1.36476791]
[1724945227325,6.2285,146.57,146.52,1.36476791]
[1724945227519,6.2285,146.57,146.53,12.53902588]
[1724945227711,6.2285,146.57,146.54,1.36461865]
[1724945227912,6.2285,146.57,146.53,12.53902588]
[1724945228617,6.2285,146.57,146.54,1.36462164]
[1724945230534,6.2285,146.57,146.53,12.53902588]
[1724945230711,6.7285,146.57,146.51,12.53902588]
[1724945231032,6.2285,146.57,146.52,46.36463181]
[1724945231922,6.2285,146.57,146.52,45.0]
[1724945232911,15.1085,146.58,146.53,12.66451588]
[1724945233110,0.5,146.6,146.53,12.66451588]
[1724945233313,6.7336,146.61,146.55,12.53902588]
[1724945233619,6.7336,146.61,146.56,1.36430823]
[1724945233836,6.7336,146.61,146.57,12.53902588]
[1724945234136,6.7336,146.61,146.56,1.36430823]
[1724945236013,6.7336,146.61,146.57,12.53902588]
[1724945236231,15.7643,146.62,146.58,1.36430904]
[1724945236947,15.7643,146.62,146.57,12.53902588]
[1724945237118,15.7643,146.62,146.55,15.38849706]
[1724945237439,15.7643,146.62,146.57,12.53902588]
[1724945239252,0.5,146.61,146.57,12.53902588]
[1724945239544,0.5,146.61,146.55,12.53902588]
[1724945239730,0.5,146.61,146.54,2.85000727]
[1724945239940,0.5,146.61,146.55,13.90351358]
[1724945240119,0.5,146.61,146.55,12.53902588]
[1724945241625,0.5,146.61,146.55,13.90349573]
[1724945242125,6.4371,146.6,146.52,12.53902588]
[1724945242325,0.5,146.59,146.53,65.0]
[1724945242865,0.5,146.59,146.53,77.53902588]
[1724945243828,0.5,146.59,146.53,65.0]
[1724945244035,0.5,146.59,146.54,12.53902588]
[1724945245243,0.5,146.59,146.54,13.90358036]
[1724945245831,0.5,146.59,146.54,12.53902588]
[1724945246034,0.5,146.59,146.53,65.0]
[1724945246035,13.03902588,146.59,146.49,15.6527]
[1724945246344,13.03902588,146.59,146.5,32.53902588]
[1724945246658,15.5167,146.58,146.52,12.53902588]
[1724945246948,0.5,146.57,146.52,12.53902588]
[1724945248247,15.5167,146.58,146.52,12.53902588]
[1724945250450,0.5,146.57,146.52,12.53902588]
[1724945251852,0.5,146.57,146.5,32.53902588]
[1724945252438,0.5,146.57,146.52,12.53902588]
[1724945253443,16.0167,146.58,146.53,1.36465131]
[1724945254155,0.5,146.57,146.52,12.53902588]
[1724945254352,16.0167,146.58,146.53,1.36466709]
[1724945254862,15.5167,146.58,146.53,1.36466731]
[1724945255033,15.5167,146.58,146.53,46.36466731]
[1724945255233,15.5167,146.58,146.54,12.53902588]
[1724945255444,6.4371,146.6,146.56,12.53902588]
[1724945255639,6.4371,146.6,146.57,1.36433274]
[1724945256436,6.4371,146.6,146.56,12.53902588]
[1724945257039,6.4371,146.6,146.57,1.36436457]
[1724945258155,0.5,146.59,146.56,12.53902588]
[1724945258353,6.4371,146.6,146.56,12.53902588]
[1724945259448,6.4371,146.6,146.57,1.3643447]
[1724945259645,6.4371,146.6,146.56,12.53902588]
[1724945260160,6.4371,146.6,146.57,1.36431901]
[1724945260458,15.885,146.62,146.58,12.53902588]
[1724945260855,0.5,146.61,146.56,12.53902588]
[1724945261556,16.385,146.62,146.56,12.53902588]
[1724945262267,16.385,146.62,146.57,1.36429966]
[1724945262443,15.885,146.62,146.56,12.53902588]
[1724945262644,15.885,146.62,146.58,12.53902588]
[1724945262845,0.5,146.64,146.57,46.36414768]
[1724945262846,0.5,146.64,146.6,12.53902588]
[1724945263447,0.5,146.64,146.59,13.90311658]
[1724945263663,0.5,146.64,146.59,12.53902588]
[1724945263854,0.5,146.64,146.57,12.53902588]
[1724945265255,7.3196,146.64,146.57,12.53902588]
[1724945265769,7.3196,146.64,146.56,12.53902588]
[1724945267657,15.8011,146.63,146.56,12.53902588]
[1724945267847,0.5,146.62,146.54,12.53902588]
[1724945268045,0.5,146.62,146.55,20.0]
[1724945269165,6.8213,146.6,146.51,7.11867533]